Cogmind - Beta 17.1 @@@ ROGUE MODE // 2026.09.09 @ 00:25:54 Player: Alicianrone Result: Destroyed by G6-QWO(j) with Overtuned Pulse Rifle Performance ------------- Evolutions (0) 0 Regions Visited (4) 800 Robots Destroyed (47) 235 Value Destroyed (1348) 1348 Prototype IDs (33) 660 Alien Tech Used (0) 0 Bonus (2347) 2347 TOTAL SCORE: 5390 Bonus ------- Delivered SUBCON Basin 2000 Registered with UFD 300 Met Optimus in HQ 500 Friendly Fire -453 Cogmind --------- Core Integrity 0/250 Matter 192/300 Energy 315/315 System Corruption 0% Temperature Cool (24) Movement Rolling (190) Ox6 Location -9/Scraptown Parts ------- > --- POWER (1) -------- Neutrino Core > --- PROPULSION (2) --- Compact Wheel > --- UTILITY (2) ------ Huge Storage Unit Tech Extrapolator > --- WEAPON (2) ------- Overtuned Railgun Subdweller Shrapnel Launcher > --- INVENTORY (25) --- Overtuned Scrapsphere Overtuned Huge Scrapsphere Scrap Suit Large Storage Unit Rocket Booster Experimental Terrain Scan Processor Medium Reactive Plating Hacking Suite Authchip [Device] Authchip [Processor] Authchip [Weapon] Master Drone Bay (1/1) Powered Cannon Heavy Assault Rifle Autogun Plasma Cutter CPS Tube (2) CPS Tube (2) Multitool Junk Cannon (10) Deploy-a-Sentry Peak State ------------ > --- POWER ------------ Neutrino Core > --- PROPULSION ------- Compact Wheel Armored Wheel > --- UTILITY ---------- Huge Storage Unit Tech Extrapolator > --- WEAPON ----------- Junk Cannon > --- INVENTORY -------- Overtuned Scrapsphere Overtuned Huge Scrapsphere Scrap Suit Large Storage Unit Experimental Terrain Scan Processor Medium Reactive Plating Hacking Suite Authchip [Device] Authchip [Processor] Authchip [Armor] Authchip [Weapon] Powered Cannon Overtuned Coil Gun Overtuned Railgun Rocket Launcher Subdweller Shrapnel Launcher Plasma Cutter CPS Tube CPS Tube Multitool [Rating: 37] Favorites ----------- Power Subdweller Power Source Engine Subdweller Power Source Power Core Neutrino Core Propulsion Compact Wheel Treads Spiked Treads Wheel Compact Wheel Utility Huge Storage Unit Device Seismic Detector Storage Huge Storage Unit Processor Tech Extrapolator Hackware Hacking Suite Protection Scrap Shield Weapon Improved Light Cannon Energy Gun Subdweller Laser Energy Cannon Subdweller Beam Cannon Ballistic Gun Heavy Assault Rifle Ballistic Cannon Improved Light Cannon Launcher Mini Grenade Launcher Special Weapon Multitool Build | -11 -10 -10 -9 -9 ------- Run | Yrd Mat Sub Rec Scr Slots Evolved . | . . . . . Power . | . . . . . Propulsion . | . . . . . Utility . | . . . . . Weapon . | . . . . . Parts Attached 53 | 7 14 20 3 9 Power 8 | 1 1 4 . 2 Engine 7 | 1 1 4 . 1 Core 1 | . . . . 1 Reactor . | . . . . . Propulsion 11 | 2 3 4 1 1 Treads 6 | . 2 3 1 . Leg . | . . . . . Wheel 5 | 2 1 1 . 1 Hover . | . . . . . Flight . | . . . . . Utility 12 | 2 5 3 1 1 Device 1 | 1 . . . . Storage 3 | 1 2 . . . Processor 1 | . . . . 1 Hackware 1 | . . . 1 . Protection 6 | . 3 3 . . Artifact . | . . . . . Weapon 22 | 2 5 9 1 5 Energy Gun 1 | . . 1 . . Energy Cannon 5 | . 2 3 . . Ballistic Gun 8 | 2 1 1 1 3 Ballistic Cannon 4 | . 1 3 . . Launcher 2 | . 1 1 . . Special Weapon 2 | . . . . 2 Impact Weapon . | . . . . . Slashing Weapon . | . . . . . Piercing Weapon . | . . . . . Special Melee Weapon . | . . . . . Unidentified Prototypes 2 | . 1 . . 1 Parts Lost 4 | . 1 2 . 1 Power 3 | . 1 2 . . Propulsion 1 | . . . . 1 Utility . | . . . . . Weapon . | . . . . . Highest Loss Streak 1 | . 1 1 . 1 To Critical Strikes . | . . . . . Average Backups 14 | 2 16 9 15 21 Power . | . . . . . Propulsion 1 | 1 2 1 2 2 Utility 6 | . 8 3 7 9 Weapon 4 | . 5 3 3 5 Tool/Special . | . . . . . Unused Backups 41 | . 3 14 1 23 Power . | . . . . . Propulsion 4 | . . . . 4 Utility 19 | . . 6 . 13 Weapon 14 | . 3 8 . 3 Tool/Special 4 | . . . 1 3 Average Slot Usage (%) 95 | . 99 89 100 99 Engine 12 | . 13 13 14 7 Core 1 | . . . . 6 Treads 11 | . 1 19 9 4 Wheel 16 | . 26 8 18 23 Device 2 | . 12 1 . . Storage 9 | . 14 4 14 14 Processor 1 | . . . . 4 Hackware 4 | . . . 13 9 Protection 5 | . . 12 . . Energy Cannon 7 | . 11 12 2 . Ballistic Gun 8 | . 4 2 11 20 Ballistic Cannon 10 | . 11 13 14 5 Peak Build Rating 37 | 7 13 31 33 37 Average Rating 17 | 4 11 14 18 24 On Entrance 14 | . 7 13 31 19 Avg Prop Armor Cover (%) 12 | . 15 4 11 14 Naked Turns . | . . . . . Heaviest Build 108 | 13 101 100 100 108 Greatest Support 40 | 26 32 40 16 28 Greatest Overweight (x) 6 | . 6 6 6 6 Average Overweight (x) 2 | . 1 . 5 3 Largest Inventory Capacity 25 | 8 25 25 25 25 Average Capacity 18 | 7 22 11 25 25 Most Carried 25 | 5 21 25 25 25 Average Carried 15 | 2 16 9 18 23 Final Capacity 25 | 8 25 25 25 25 Final Carried 25 | 5 21 25 23 25 Class Distribution -------------------- 85% | Mutant 13% | Subdweller-Mutant Dominant Class ---------------- Mutant | -10/Materials Mutant | -10/Subcaves Mutant | -9/Recycling Mutant | -9/Scraptown Resources | -11 -10 -10 -9 -9 ----------- Run | Yrd Mat Sub Rec Scr Matter Collected 1787 | 300 500 564 111 312 Remotely . | . . . . . Salvage Created 1824 | 96 576 731 145 276 Parts 107 | 6 33 38 11 19 Haulers Intercepted 2 | . 2 . . . Recyclers Shooed . | . . . . . Parts Field Recycled . | . . . . . Retrieved Matter . | . . . . . Parts Self-Destructed 16 | . . 3 . 13 Prevented . | . . . . . Parts Restored . | . . . . . Kills | -11 -10 -10 -9 -9 ------- Run | Yrd Mat Sub Rec Scr Combat Hostiles Destroyed 34 | . 9 20 3 2 Guns 6 | . 5 . 1 . Cannons 19 | . 2 15 2 . AOE 8 | . 2 4 . 2 Classes Destroyed 12 | 2 5 4 . 1 Tunneler 2 | 1 1 . . . Hauler 2 | . 2 . . . Recycler 2 | 1 1 . . . Operator 2 | . 2 . . . Turret 2 | . . 2 . . Watcher 3 | . 3 . . . Swarmer 7 | . 3 4 . . Grunt 6 | . 6 . . . Sentry 4 | . . 1 3 . Cobbler 1 | . . 1 . . Subdweller 15 | . . 15 . . Scrapper 2 | . . . . 2 Best Kill Streak 5 | 2 4 5 1 2 Combat Bots Only 4 | . 3 4 1 2 Max Kills in Single Turn 3 | 1 3 3 1 2 Gunslinging 1 | . 1 . . . Exploded 2 | . 2 2 . 2 Melee . | . . . . . Uniques/NPCs Destroyed . | . . . . . Combat | -11 -10 -10 -9 -9 -------- Run | Yrd Mat Sub Rec Scr Hostile Shots Fired 145 | . 37 78 4 26 Missed 35 | . 9 19 3 4 Hits 110 | . 28 59 1 22 Melee 1 | . . . . 1 Projectile 109 | . 28 59 1 21 AOE 2 | . . 2 . . Critical Strikes 4 | . . 3 . 1 Damage Taken 1969 | . 376 1237 18 338 Core 257 | . 22 94 . 141 Absorbed by Shields . | . . . . . Core Remaining (%) 100 | 100 . . . . Volleys Fired 197 | 5 46 112 6 28 Largest 2 | 2 2 2 2 1 Hottest 160 | 40 101 160 56 40 Shots Fired 256 | 10 73 133 12 28 Gun 74 | 10 50 3 6 5 Cannon 153 | . 20 127 6 . Launcher 7 | . 3 3 . 1 Special 22 | . . . . 22 Kinetic 113 | 10 52 33 12 6 Thermal 140 | . 18 100 . 22 Explosive 3 | . 3 . . . Electromagnetic . | . . . . . Robot Hit Streak 23 | 2 8 23 6 8 Robot Miss Streak 4 | 2 4 2 2 2 Penetration Max . | . . . . . Secondary Targets 2 | . 2 . . . Max Gunslinging Chain 1 | . 1 . . . Shots Hit Robots 151 | 5 45 77 8 16 Core Hits 75 | 3 26 32 5 9 Critical Kills 1 | . . 1 . . Critical Parts Destroyed . | . . . . . Critical Strikes 3 | . . 3 . . Meltdown 1 | . . 1 . . Blast 2 | . . 2 . . Melee Attacks . | . . . . . Impact . | . . . . . Slashing . | . . . . . Piercing . | . . . . . Sneak Attacks . | . . . . . Combat Hostiles . | . . . . . Follow-up Attacks . | . . . . . Damage Inflicted 3720 | 79 914 2237 163 327 Guns 583 | 79 441 . 63 . Cannons 2316 | . 249 1967 100 . Explosions 700 | . 224 270 . 206 Melee . | . . . . . Ramming . | . . . . . Kinetic 1541 | 79 441 652 163 206 Thermal 1955 | . 249 1585 . 121 Explosive 224 | . 224 . . . Electromagnetic . | . . . . . Impact . | . . . . . Slashing . | . . . . . Piercing . | . . . . . Highest Corruption . | . . . . . Average Corruption . | . . . . . Corruption Purged . | . . . . . Corruption Blocked . | . . . . . Overload Shots . | . . . . . Overflow Damage 27 | . 10 13 . 4 Projectiles 23 | . 10 13 . . Explosions 4 | . . . . 4 Melee . | . . . . . Knockbacks . | . . . . . Impact . | . . . . . Kinetic . | . . . . . Secondary . | . . . . . Self-Inflicted Damage 49 | . 35 . . 14 Shots 2 | . 1 . . 1 Rammed . | . . . . . Targets Rammed . | . . . . . Kicked . | . . . . . Crushed . | . . . . . Highest Temperature 149 | . 149 90 6 32 Average Temperature 31 | . 42 26 4 14 Received Heat Transfer 580 | . 165 264 . 151 Siege Activations . | . . . . . Martial Activations . | . . . . . Shielding Activations . | . . . . . Robots Disrupted . | . . . . . Combat Hostiles . | . . . . . Robots Corrupted . | . . . . . Combat Hostiles . | . . . . . Parts Fried . | . . . . . Impact Corruptions . | . . . . . Robots Melted 1 | . . 1 . . Combat Hostiles 1 | . . 1 . . Parts Melted 8 | . . 6 . 2 Heat Transferred 3076 | . 444 2257 . 375 Parts Sabotaged . | . . . . . Parts Stolen . | . . . . . Parts Stripped . | . . . . . Power Chain Reactions . | . . . . . Alert | -11 -10 -10 -9 -9 ------- Run | Yrd Mat Sub Rec Scr Maximum Alert Level . | . . . . . Low Security (%) 100 | 100 100 . 100 . Level 1 . | . . . . . Level 2 . | . . . . . Level 3 . | . . . . . Level 4 . | . . . . . Level 5 . | . . . . . High Security . | . . . . . Max Security . | . . . . . Peak Influence 146 | 5 146 . 42 . Initial 24 | . . . 24 . Average 18 | . 31 . 7 . Influence Increases 865 | 10 411 230 214 . Destroy 0b10 Robot/C 380 | . 180 140 60 . Destroy 0b10 Robot/NC 55 | 10 45 . . . Destroy Leader 60 | . 60 . . . Successful Hack 35 | . 32 . 3 . Select Force Hacks 210 | . 60 . 150 . Destroy Structure 35 | . 34 . 1 . Lose Combat Pursuer 90 | . . 90 . . Influence Decreases 865 | 10 411 180 264 . Entered New Map 26 | . . . 26 . Time Decay 829 | 10 401 180 238 . Lost Part 10 | . 10 . . . Squads Dispatched 3 | . 3 . . . Investigation 2 | . 2 . . . Extermination . | . . . . . Reinforcement 1 | . 1 . . . Assault . | . . . . . Garrison . | . . . . . Intercept . | . . . . . Searches Triggered . | . . . . . Construction Impeded . | . . . . . Haulers Reinforced . | . . . . . Active Scanning Responses . | . . . . . Cargo Convoy Interrupts . | . . . . . Stealth | -11 -10 -10 -9 -9 --------- Run | Yrd Mat Sub Rec Scr Distress Signals . | . . . . . Communications Jammed . | . . . . . Distress Signals . | . . . . . Times Spotted 48 | . 16 18 2 12 Peak Tracking Total 9 | . 4 3 1 9 Tactical Retreats 2 | . . 2 . . Traps | -11 -10 -10 -9 -9 ------- Run | Yrd Mat Sub Rec Scr Traps Triggered 1 | . . 1 . . Indirectly . | . . . . . Trap Hack Attempts . | . . . . . Triggered . | . . . . . Disarmed . | . . . . . Reprogrammed . | . . . . . Reused . | . . . . . Traps Extracted . | . . . . . Installed 1 | . . 1 . . Triggered . | . . . . . Machines | -11 -10 -10 -9 -9 ---------- Run | Yrd Mat Sub Rec Scr Machines Disabled 9 | . . 4 . 5 Max in Single Turn 3 | . . 3 . 2 Machines Repaired . | . . . . . Machines Dismantled . | . . . . . Machines Sabotaged . | . . . . . Overloaded Fab Kills . | . . . . . Hacking | -11 -10 -10 -9 -9 --------- Run | Yrd Mat Sub Rec Scr Machines Accessed 25 | . 9 4 11 1 Terminals 13 | . 7 . 6 . Fabricators . | . . . . . Repair Stations . | . . . . . Recycling Units 7 | . 2 . 5 . Scanalyzers . | . . . . . Garrison Access . | . . . . . Total Hacks 58 | . 31 7 19 1 Successful 40 | . 19 7 13 1 Failed 16 | . 11 . 5 . Catastrophic . | . . . . . Database Lockouts 2 | . 1 . 1 . Manual 40 | . 23 . 17 . Terminals 40 | . 26 . 14 . Fabricators . | . . . . . Repair Stations . | . . . . . Recycling Units 10 | . 5 . 5 . Scanalyzers . | . . . . . Garrison Access . | . . . . . Terminal Hacks 18 | . 9 7 1 1 Record 4 | . . 4 . . Robot Schematic 1 | . 1 . . . Robot Analysis 4 | . 3 . 1 . Prototype ID Bank 2 | . 2 . . . Open Door 1 | . . 1 . . Locate Traps 3 | . 3 . . . Proto ID Catalog 2 | . . 1 . 1 Release Object 1 | . . 1 . . Fabricator Hacks . | . . . . . Repair Station Hacks . | . . . . . Recycling Unit Hacks 1 | . 1 . . . Retrieve Components 1 | . 1 . . . Scanalyzer . | . . . . . Garrison Access Hacks . | . . . . . Unauthorized Hacks 21 | . 9 . 12 . Terminals 14 | . 7 . 7 . Botnet 4 | . 2 . 2 . Skim 10 | . 5 . 5 . Fabricators . | . . . . . Repair Stations . | . . . . . Recycling Units 7 | . 2 . 5 . Tunnel 7 | . 2 . 5 . Scanalyzers . | . . . . . Garrison Access . | . . . . . Data Cores Recovered 1 | . 1 . . . Used . | . . . . . Hacking Detections 14 | . 8 . 6 . Full Trace Events . | . . . . . Feedback Events . | . . . . . Feedback Blocked . | . . . . . Robot Schematics Acquired 1 | . 1 . . . Robots Built . | . . . . . Authchips . | . . . . . Time . | . . . . . Total Robot Build Rating . | . . . . . Part Schematics Acquired 7 | . . . . 7 Parts Built . | . . . . . Authchips . | . . . . . Time . | . . . . . Total Part Build Rating . | . . . . . Part Studies Acquired . | . . . . . Parts Repaired . | . . . . . Time . | . . . . . Parts Recycled . | . . . . . Recycled Matter . | . . . . . Retrieved Matter . | . . . . . Retrieved Components 9 | . 9 . . . Parts Scanalyzed . | . . . . . Part Schematics Acquired . | . . . . . Parts Damaged . | . . . . . Bothacking | -11 -10 -10 -9 -9 ------------ Run | Yrd Mat Sub Rec Scr Used RIF Installer . | . . . . . Robots Hacked . | . . . . . Non-combat . | . . . . . Combat . | . . . . . Robot Hacks Applied . | . . . . . Relay Couplers Released . | . . . . . Fabnet Peak Effective % . | . . . . . Robots Rewired . | . . . . . Allies Hacked . | . . . . . Hacks Repelled . | . . . . . Allies | -11 -10 -10 -9 -9 -------- Run | Yrd Mat Sub Rec Scr Total Allies . | . . . . . Largest Group . | . . . . . Highest-Rated Group . | . . . . . Highest-Rated Ally . | . . . . . Total Orders . | . . . . . Ally Attacks . | . . . . . Total Damage . | . . . . . Kills . | . . . . . Allies Corrupted . | . . . . . Allies Melted . | . . . . . Intel | -11 -10 -10 -9 -9 ------- Run | Yrd Mat Sub Rec Scr Active Infowar (turns) 1946 | 18 1278 650 . . Seismic 1946 | 18 1278 650 . . Robot Analysis Total 4 | . 3 . 1 . Derelict Logs Recovered 5 | . . 2 . 3 Drone Launches . | . . . . . Drone Recoveries . | . . . . . Exploration | -11 -10 -10 -9 -9 ------------- Run | Yrd Mat Sub Rec Scr Turns Passed 11912 | 81 1470 5456 1718 3187 Spaces Moved 7192 | 58 951 3230 912 2041 Core 3 | 3 . . . . Treads 2204 | . . 2204 . . Legs . | . . . . . Wheels 4985 | 55 951 1026 912 2041 Hover . | . . . . . Flight . | . . . . . Fastest Speed 50 | 50 90 130 175 135 Average Speed 151 | 88 127 153 177 148 Slowest Speed 360 | 100 190 360 190 190 Overloaded Moves . | . . . . . Propulsion Burnouts . | . . . . . Robots Hopped . | . . . . . Potential Cave-ins . | . . . . . Cave-ins Triggered . | . . . . . Exploration Rate (%) 76 | 3 99 94 99 89 Regions Visited 4 Branch Regions 3 Pre-discovered Areas 10 | . 3 1 6 . Known Exits Taken 3 | . 1 1 1 . Unknown Exits Taken 1 | 1 . . . . Scrap Searched 21 | . . 17 . 4 Spaces Dug 17 | . . 14 . 3 Terrain Destroyed 110 | . 32 58 1 19 Melee . | . . . . . Projectile 28 | . . 22 1 5 AOE 82 | . 32 36 . 14 Terrain Rammed . | . . . . . Walls Destroyed . | . . . . . Machines Disabled . | . . . . . Actions | -11 -10 -10 -9 -9 --------- Run | Yrd Mat Sub Rec Scr Total 7983 | 74 1124 3599 1002 2184 Wait 301 | . 55 117 66 63 Move 7188 | 57 950 3229 911 2041 Hop . | . . . . . Pick Up 95 | 5 26 34 14 16 Fast Attach 23 | 7 2 10 . 4 Attach 11 | . 3 4 . 4 Detach 1 | . . . . 1 Swap 67 | . 30 26 3 8 Drop 88 | . 12 55 2 19 Fire 197 | 5 46 112 6 28 Melee . | . . . . . Ram . | . . . . . Kick . | . . . . . Crush . | . . . . . Escape Stasis . | . . . . . Rewire . | . . . . . Trap 1 | . . 1 . . Miscellaneous 11 | . . 11 . . Route ------- -11/Scrapyard -10/Materials (discovered 6 exits: *Mat x3 / [*Min x2] / *Sub) -10/Subcaves (discovered 3 exits: *Mat x2 / *Rec) -9/Recycling (discovered 2 exits: [*Fac] / *Scr) -9/Scraptown (discovered 2 exits: [*Fac x2]) History --------- Turn | Location | Event 17 | -11/Scrapyard | Discovered new exit (range 15) 82 | -11/Scrapyard | Entered Materials 358 | -10/Materials | Build established: Mutant 483 | -10/Materials | Discovered new exit (range 7) 603 | -10/Materials | Discovered new exit (range 15) 915 | -10/Materials | Discovered new exit (range 13) 979 | -10/Materials | Loaded intel: 14 trap records 1032 | -10/Materials | Learned 4 Subcaves zone layouts 1074 | -10/Materials | Learned 2 Mines zone layouts 1092 | -10/Materials | Discovered new exit (range 9) 1104 | -10/Materials | Learned location of Subcaves (-10) 1158 | -10/Materials | Identified exit to Materials 1158 | -10/Materials | Identified exit to Subcaves 1409 | -10/Materials | Central database locked down 1552 | -10/Materials | Entered Subcaves 1553 | -10/Subcaves | Identified exit to Recycling 1554 | -10/Subcaves | Identified exit to Materials 1780 | -10/Subcaves | Curiously followed by a Cobbler waking with a query about "LVR3C" 1805 | -10/Subcaves | Learned location of Zion (-6) 1805 | -10/Subcaves | Met a Zionite searching for "candidates" 2123 | -10/Subcaves | Discovered exit to Materials (range 4) 2418 | -10/Subcaves | Visited Clippyterm 2421 | -10/Subcaves | Learned location of 1 exit from Materials 2423 | -10/Subcaves | Learned Research machine intel 2542 | -10/Subcaves | Build established: Subdweller-Mutant 3085 | -10/Subcaves | A swath of the cavern ceiling suddenly collapsed 3109 | -10/Subcaves | Ambushed by angry Subdweller bent on revenge 3571 | -10/Subcaves | Build established: Mutant 4715 | -10/Subcaves | Visited 4L-MR0's lab 5058 | -10/Subcaves | Learned 4 Materials zone layouts 5672 | -10/Subcaves | Build established: Subdweller-Mutant 5764 | -10/Subcaves | Ambushed by Subdweller buried in earth 6294 | -10/Subcaves | Found Powered Cannon 6306 | -10/Subcaves | Build established: Mutant 6908 | -10/Subcaves | Found SUBCON Basin 7008 | -10/Subcaves | Entered Recycling 7109 | -9/Recycling | Scanned before Scraplab entrance 7137 | -9/Recycling | Entered Scraplab 7675 | -9/Recycling | Discovered new exit (range 15) 8493 | -9/Recycling | Learned Materials stockpile data 8549 | -9/Recycling | Learned Materials stockpile data 8593 | -9/Recycling | Identified exit to Scraptown 8625 | -9/Recycling | Learned Storage terminal intel 8647 | -9/Recycling | Learned Materials trap positions 8659 | -9/Recycling | Learned Materials recycling unit intel 8681 | -9/Recycling | Learned Storage stockpile data 8726 | -9/Recycling | Entered Scraptown 8953 | -9/Scraptown | Heard Great Nut preacher, LISTEN AND RECITE! 8995 | -9/Scraptown | Received an X-ray algorithm 9044 | -9/Scraptown | Discovered new exit (range 11) 9114 | -9/Scraptown | Scanned Subdweller tech in exchange for log data 9119 | -9/Scraptown | Learned Factory emergency access door positions 9121 | -9/Scraptown | Learned Factory garrison access intel 9238 | -9/Scraptown | Visited Spacefarers 9266 | -9/Scraptown | Visited Red Mages 9319 | -9/Scraptown | Visited Symbiants 9436 | -9/Scraptown | Visited Science Testing Area 9462 | -9/Scraptown | Visited Cave Peace 9494 | -9/Scraptown | Visited CPS Storage 9527 | -9/Scraptown | Visited Awakened 9806 | -9/Scraptown | Visited UFD Registry 9806 | -9/Scraptown | Registered with UFD as "Shadowbank" 9838 | -9/Scraptown | Visited Observation Area 9865 | -9/Scraptown | Visited Junk Cannon Lab 9872 | -9/Scraptown | Found Prototype Special Weapon 9902 | -9/Scraptown | Visited Infowarlord's Domain 9914 | -9/Scraptown | Found Exp. Terrain Scan Processor 9957 | -9/Scraptown | Delivered Scrap Shield to a Scientist 10013 | -9/Scraptown | Visited Chapter 10 10037 | -9/Scraptown | Visited Scrap Suit Storage 10060 | -9/Scraptown | Visited Research Penetration Think Tank 10083 | -9/Scraptown | Visited Science Guys 10126 | -9/Scraptown | Visited Scrapoid Research Area 10150 | -9/Scraptown | Visited Curators Association 10195 | -9/Scraptown | Visited Modified Component R&D 10547 | -9/Scraptown | Found Scrap Suit 11016 | -9/Scraptown | Tech Extrapolator generated special schematic: Deep Structural Scanner 11113 | -9/Scraptown | Tech Extrapolator generated special schematic: Machine Rigger 11516 | -9/Scraptown | Identified Junk Cannon 11703 | -9/Scraptown | Met Optimus 11703 | -9/Scraptown | Accepted into 0bPrime 11801 | -9/Scraptown | Civil war broke out across Scraptown 11823 | -9/Scraptown | Found Deploy-a-Sentry 11857 | -9/Scraptown | Core integrity fell below 50% 11894 | -9/Scraptown | Found Master Drone Bay 11903 | -9/Scraptown | Discovered new exit (range 8) 11909 | -9/Scraptown | Core integrity fell below 20% 11913 | -9/Scraptown | Destroyed by G6-QWO(j) with Overtuned Pulse Rifle Last Messages --------------- 11864_ Machine disabled. 11867_ MC-1EI(g) destroyed. 11870_ Acquired 61 matter. 11878_ AH-231(E) cannibalizes Lgt. Deuterium Engine to repair Imp. Deuterium Engine. 11890_ Slug penetrates Machine. 11890_ Machine disabled. 11890_ Slug penetrates Machine. 11894_ Acquired Master Drone Bay. 11898_ Slug penetrates Machine. 11898_ Slug penetrates Wall. 11903_ Slug penetrates Earth. 11903_ EXIT=FOUND 11905_ KK-DGE(j): "0bPrime is tearing us apart, don't fall for it!" 11908_ Critical hit (Burn: +50). 11908_ Bolt penetrates KK-DGE(j). 11909_ Bolt penetrates Wall. 11911_ Arm. Wheel destroyed. 11911_ Penetrated by Bolt. Map ----- +----------------------------------------------------+ | | | | | | | | | | | | | | | | | | | | | ?????????????????????????????????????????????????? | | ?????????????????????????????????????????????????? | | ?????????????????????????????????????????????????? | | ?????????????????????????????????????????????????? | | ?????????????????????????????????????????????????? | | ?????????????????????????????????????????????????? | | ?????????????????????????????????????????????????? | | ?????????????????????????????????????????????????? | | ?????????????????????????????????????????????????? | | ?????????????????????????????????????????????????? | | ?????????????????????????????????????????????????? | | ???????????????????????#####?????????????????????? | | ???????????????????????#"""#?????????????????????? | | ???????????????????????#"["#?????????????????????? | | ??????????????????????##!<=#?????????????????????? | | ?????????????# #####j%@*##????????????????????? | | ??????????? !%=!=hp*j[%#????????????????????? | | ??????????? *![j!%h![!!#????????????????????? | | ???????????### j#######;;###???????????????????? | | ?????????????##?????????## # #???????????????????? | | #???########### #########;;##???????????????????? | | #???#""""" # #"""""""" ""#???????????????????? | | ##### " "!! " # #""""" X ""#???????????????????? | | "## ! """# #""" " ""#???????????????????? | | "### """# #" " ""#???????????????????? | | "*#?# " """# #""" " ""#???????????????????? | | ""###"""! * " # #"""" ""#???????????????????? | | "##""" *! # #"" #???????????????????? | | ""###"""![ ""# #"" "" "&#???????????????????? | | #?# " "# #"" "" "&#???????????????????? | | ""### "# # "#???????????????????? | | "## # #" #???????????????????? | | ######### ####" ## "#########???????????????????? | | ######### ####"*!"" ""#########??????????????????? | | """"""""" "" "!%[ = "#"""""""#??????????????????? | | =[= = "# """"""#??????????????????? | | !== % !% "# ""#??????????????????? | | =%=! "# ""#??????????????????? | | ! "# ""#??????????????????? | | "#??????????????????? | +----------------------------------------------------+ Best States ------------- Heat Dissipation 25 Energy Generation 19 Energy Capacity 315 Matter Stores 300 Matter Capacity 300 Sight Range 16 Terrain Scan Density 10 Armor Coverage 800 Evasion (%) 42 Recoil Reduction 2 Offensive Hacking 10 Authchip Count 5 Item Schematics ----------------- Lgt. Humpback | -9/Scraptown | Extrapolated Spk. Treads | -9/Scraptown | Extrapolated Deep Structural Scanner | -9/Scraptown | Extrapolated Machine Rigger | -9/Scraptown | Extrapolated Mak. Leg | -9/Scraptown | Extrapolated Mak. Coolant Network | -9/Scraptown | Extrapolated Barrage Gun | -9/Scraptown | Extrapolated Robot Schematics ------------------ M-13 Machinist | -10/Materials | Hacked Fabricated ------------ Nothing Repaired ---------- Nothing Studied --------- None Alien Tech Used ----------------- None Achievements -------------- None Challenges ------------ None Game ------ Seed TargetCommPerforator Manual? 0 Play Time 00:57:28 Cumulative 1076.6 hours Start 2026.09.08 @ 22:22:14 End 2026.09.09 @ 00:25:54 Sessions 1 Manual Loads 0 Difficulty Rogue Special Mode None Game No. 299 Rogue 299 Adventurer 0 Explorer 0 Win Type - Total 49 Types 14/11/12/2/2/0/4/1/1/2 Lore% 97 Gallery% 91 Achievement% 87 Wizard Run 0 Options --------- Layout 1 ASCII 0 Keyboard 0 Movement Mouse Keybinds 0 Fullscreen 2 Font 32/SmallcapsGlow Map View 50x35 Zoom Use 0% Tactical HUD 1 Map Filters NONE Filters NONE Steam 1 RUN: e0ee5a4e-9518-43c5-a9d7-b466b01fae01